Cogmind - Beta 17.1 @@@ ROGUE MODE // 2026.08.26 @ 17:19:19 Player: KURIIRI Result: Self-destructed Performance ------------- Evolutions (5) 2500 Regions Visited (20) 4000 Robots Destroyed (494) 2470 Value Destroyed (18910) 18910 Prototype IDs (32) 640 Alien Tech Used (0) 0 Bonus (7092) 7092 TOTAL SCORE: 35612 Bonus ------- Triggered High Security 500 High Alert Combat Kills 4510 Follower Combat Kills 727 Entered Garrisons 600 Aligned with FarCom 300 Met Imprinter 300 Acquired ECA 300 Friendly Fire -145 Cogmind --------- Core Integrity 363/1000 Matter 108/300 Energy 315/315 System Corruption 15% Temperature Warm (156) Movement Rolling (155) Ox5 Location -5/Waste Parts ------- > --- POWER (1) -------- Neutrino Core > --- PROPULSION (4) --- Armored Medium Treads Wheel Wheel > --- UTILITY (6) ------ High-capacity Storage Unit Improved Target Analyzer Damper Plating > --- WEAPON (6) ------- KE Penetrator KE Penetrator CR-A16's Pointy Stick > --- INVENTORY (20) --- Light Angular Momentum Engine Light Particle Reactor Medium Treads Wheel Wheel Wheel Matter Compressor (250) Medium Reflective Plating Advanced Remote Force Field System Restoration Module Long-range Tractor Beam YOLO Cannon Hypervelocity Railgun Antimatter Cannon Antimatter Cannon Improved Remote Datajack RU-N14's Throwing Claymores RU-N14's Throwing Claymores Peak State ------------ > --- POWER ------------ Light Particle Reactor > --- PROPULSION ------- Advanced Heavy Treads Advanced Heavy Treads > --- UTILITY ---------- High-capacity Storage Unit Advanced Targeting Computer Improved Kinecellerator Improved Medium Armor Plating Advanced Remote Force Field Advanced Hacking Suite > --- WEAPON ----------- Gauss Rifle Coil Gun KE Penetrator Railgun Hypervelocity Railgun Hypervelocity Railgun > --- INVENTORY -------- Neutrino Core Reinforced Antimatter Reactor Improved Heavy Treads Improved Cooling System High-capacity Storage Unit Matter Compressor Improved Light Armor Plating Medium Reflective Plating System Restoration Module YOLO Cannon Gauss Rifle Gauss Rifle Gauss Rifle Heavy Missile Launcher RU-N14's Throwing Claymores RU-N14's Throwing Claymores CR-A16's Pointy Stick [Rating: 116] Favorites ----------- Power Neutrino Core Engine Ion Engine Power Core Neutrino Core Reactor Reinforced Antimatter Reactor Propulsion Light Treads Treads Light Treads Leg Aluminum Leg Wheel Armored Huge Wheel Utility High-capacity Storage Unit Device Seismic Detector Storage High-capacity Storage Unit Processor Advanced Targeting Computer Hackware Advanced Hacking Suite Protection Medium Reactive Plating Weapon Gauss Rifle Energy Gun Medium Laser Energy Cannon YOLO Cannon Ballistic Gun Gauss Rifle Ballistic Cannon Assault Cannon Launcher Rocket Launcher Special Weapon Improved Remote Datajack Impact Weapon Powered Hammer Piercing Weapon CR-A16's Pointy Stick Build | -11 -10 -10 -9 -9 -9 -8 -8 -8 -8 -7 -7 -7 -7 -7 -7 -6 -6 -6 -5 -5 ------- Run | Yrd Mat Min Mat Min Exi Min Mat Gar Mat Fac Gar Fac Low Low Zio Pro Fac Gar Fac Was Slots Evolved 10 | . . . 2 . . . 2 . . 2 . . . . . . 2 . 2 . Power . | . . . . . . . . . . . . . . . . . . . . . Propulsion 2 | . . . 1 . . . 1 . . . . . . . . . . . . . Utility 4 | . . . 1 . . . 1 . . . . . . . . . 1 . 1 . Weapon 4 | . . . . . . . . . . 2 . . . . . . 1 . 1 . Parts Attached 148 | 4 4 2 19 . 3 . 10 3 11 11 10 11 2 5 2 2 7 9 28 5 Power 9 | . . . 3 . . . 2 . 2 . 1 . . . . . . 1 . . Engine 5 | . . . 3 . . . 2 . . . . . . . . . . . . . Core 2 | . . . . . . . . . 1 . 1 . . . . . . . . . Reactor 2 | . . . . . . . . . 1 . . . . . . . . 1 . . Propulsion 38 | 2 . 1 4 . 1 . 2 2 4 4 2 1 . 1 . 1 . 3 9 1 Treads 28 | 2 . 1 4 . 1 . 2 2 4 3 2 . . 1 . 1 . 2 3 . Leg . | . . . . . . . . . . . . . . . . . . . . . Wheel 10 | . . . . . . . . . . 1 . 1 . . . . . 1 6 1 Hover . | . . . . . . . . . . . . . . . . . . . . . Flight . | . . . . . . . . . . . . . . . . . . . . . Utility 42 | 1 1 . 4 . 1 . 5 . 1 1 3 5 1 2 . 1 4 3 5 4 Device 15 | 1 . . 2 . . . . . 1 1 1 1 1 . . . 2 1 3 1 Storage 4 | . 1 . . . 1 . 1 . . . . . . . . . 1 . . . Processor 6 | . . . . . . . . . . . 1 2 . 1 . . . . . 2 Hackware 3 | . . . . . . . 2 . . . . 1 . . . . . . . . Protection 14 | . . . 2 . . . 2 . . . 1 1 . 1 . 1 1 2 2 1 Artifact . | . . . . . . . . . . . . . . . . . . . . . Weapon 59 | 1 3 1 8 . 1 . 1 1 4 6 4 5 1 2 2 . 3 2 14 . Energy Gun 11 | 1 2 . 1 . . . 1 1 1 . . . . . 1 . . . 3 . Energy Cannon 2 | . . . 1 . . . . . . . . . . . . . . . 1 . Ballistic Gun 22 | . 1 . . . . . . . . . . 5 1 2 . . 3 2 8 . Ballistic Cannon 15 | . . . 3 . . . . . 3 6 2 . . . . . . . 1 . Launcher 6 | . . 1 3 . 1 . . . . . 1 . . . . . . . . . Special Weapon 1 | . . . . . . . . . . . . . . . . . . . 1 . Impact Weapon 1 | . . . . . . . . . . . 1 . . . . . . . . . Slashing Weapon . | . . . . . . . . . . . . . . . . . . . . . Piercing Weapon 1 | . . . . . . . . . . . . . . . 1 . . . . . Special Melee Weapon . | . . . . . . . . . . . . . . . . . . . . . Unidentified Prototypes 9 | . . . 3 . . . 1 . 1 . . 1 . . 1 . . . 1 1 Parts Lost 32 | . . . 1 1 . 1 1 . 1 . 1 1 . 1 . 1 . . 20 3 Power 2 | . . . . . . . 1 . 1 . . . . . . . . . . . Propulsion 7 | . . . 1 . . . . . . . . . . . . . . . 5 1 Utility 12 | . . . . 1 . 1 . . . . 1 . . . . 1 . . 7 1 Weapon 11 | . . . . . . . . . . . . 1 . 1 . . . . 8 1 Highest Loss Streak 15 | . . . 1 1 . 1 1 . 1 . 1 1 . 1 . 1 . . 15 2 To Critical Strikes . | . . . . . . . . . . . . . . . . . . . . . Average Backups 14 | 5 9 12 13 15 14 11 12 17 18 18 16 15 16 14 15 10 15 17 16 18 Power . | 1 1 2 1 1 1 1 . . . . . 1 1 1 1 1 1 1 1 2 Propulsion 2 | 3 2 2 2 3 2 1 1 4 5 4 3 3 3 3 3 1 1 1 1 4 Utility 4 | . 1 2 3 4 3 3 5 7 7 7 6 5 5 4 4 2 6 6 6 4 Weapon 6 | 1 4 6 6 7 7 6 5 5 5 6 6 6 6 5 7 6 7 9 6 6 Tool/Special . | . . . . . . . . . . . . . . . . . . . . . Unused Backups 39 | . . 4 8 . . . 4 . . 6 4 1 1 3 1 . . . . 7 Power 2 | . . . 1 . . . . . . . . . . . . . . . . 1 Propulsion 5 | . . . 1 . . . . . . 2 1 . . . . . . . . 1 Utility 12 | . . 1 1 . . . . . . 2 2 . 1 2 1 . . . . 2 Weapon 19 | . . 3 5 . . . 4 . . 2 1 1 . . . . . . . 3 Tool/Special 1 | . . . . . . . . . . . . . . 1 . . . . . . Average Slot Usage (%) 88 | . 100 100 98 90 74 92 98 100 99 96 92 83 84 83 66 81 78 85 74 85 Engine 4 | . 14 14 11 11 11 11 8 9 2 . . . . . . . . . . . Core 3 | . . . . . . . . . 2 . 1 6 7 7 7 7 5 5 1 5 Reactor 1 | . . . . . . . . . 4 7 5 . . . . . . . 2 . Treads 20 | . 28 28 32 33 33 33 36 36 36 26 22 10 7 7 7 7 6 9 9 11 Wheel 2 | . . . . . . . . . . 1 . 4 7 7 7 7 6 2 5 8 Device 5 | . 14 14 16 13 11 4 . . . 2 7 5 . . . . . . 7 7 Storage 8 | . 14 14 11 11 11 11 9 9 9 7 7 7 7 7 7 7 6 6 5 5 Processor 3 | . . . . . . . . . . . 6 7 7 7 7 7 6 6 1 6 Hackware 4 | . . . . . . . 11 9 9 7 . 1 7 7 7 7 6 6 2 . Protection 7 | . . . 4 . 7 11 14 18 17 12 7 6 7 7 7 4 5 12 4 4 Energy Gun 3 | . 25 27 . . . . . 4 . . 4 . . . 5 . . . 4 . Ballistic Gun 10 | . 2 . . . . . . . . . . 13 29 29 6 29 29 31 20 25 Ballistic Cannon 9 | . . . 11 13 1 21 17 13 16 28 24 15 . . . . . . . . Launcher 1 | . . . 10 8 . . . . 1 . . . . . . . . . . . Peak Build Rating 116 | 7 8 9 19 17 20 21 29 32 46 59 76 76 70 68 77 77 77 103 116 99 Average Rating 49 | 6 7 8 16 16 14 19 26 30 42 54 67 72 68 67 73 66 75 81 85 88 On Entrance 45 | 6 7 8 9 17 17 20 19 29 32 46 59 76 70 68 67 77 65 77 103 75 Avg Prop Armor Cover (%) 9 | . . . . . . . . . . 8 . 9 10 9 11 10 7 8 8 10 Naked Turns . | . . . . . . . . . . . . . . . . . . . . . Heaviest Build 128 | 14 30 30 45 40 64 65 83 79 98 113 112 103 93 90 81 81 93 106 128 122 Greatest Support 150 | 40 40 40 60 60 60 60 80 80 112 112 150 150 28 75 28 75 75 150 140 30 Greatest Overweight (x) 9 | . . . . . 1 1 1 . . 4 . 3 3 3 2 2 3 3 9 9 Average Overweight (x) 1 | . . . . . . 1 . . . . . 1 3 2 2 1 2 1 1 7 Largest Inventory Capacity 20 | 8 15 15 15 15 20 20 20 20 20 20 20 20 20 20 20 20 20 20 20 20 Average Capacity 18 | 8 13 15 15 15 15 20 20 20 20 20 20 20 20 20 20 20 20 20 20 20 Most Carried 20 | 6 14 15 15 15 15 13 16 20 20 20 20 20 20 20 20 20 20 20 20 20 Average Carried 17 | 5 9 14 14 15 14 12 13 18 19 19 19 19 20 18 19 12 17 19 17 19 Final Capacity 20 | 8 15 15 15 15 20 20 20 20 20 20 20 20 20 20 20 20 20 20 20 20 Final Carried 20 | 4 14 15 15 15 13 12 15 20 20 20 20 20 20 17 20 16 20 20 20 19 Class Distribution -------------------- 42% | Tank 30% | Mutant 12% | Scavenger-Mutant 7% | Scavenger-Tank Dominant Class ---------------- Mutant | -10/Materials Mutant | -10/Mines Mutant | -9/Materials Mutant | -9/Mines Mutant | -9/Exiles Mutant | -8/Mines Scavenger-Mutant | -8/Materials Scavenger-Mutant | -8/Garrison Mutant | -8/Materials Tank | -7/Factory Tank | -7/Garrison Tank | -7/Factory Tank | -7/Lower Caves Tank | -7/Lower Caves Tank | -7/Zion Tank | -6/Proximity Caves Tank | -6/Factory Scavenger-Tank | -6/Garrison Executioner | -5/Factory Scavenger-Executioner | -5/Waste Resources | -11 -10 -10 -9 -9 -9 -8 -8 -8 -8 -7 -7 -7 -7 -7 -7 -6 -6 -6 -5 -5 ----------- Run | Yrd Mat Min Mat Min Exi Min Mat Gar Mat Fac Gar Fac Low Low Zio Pro Fac Gar Fac Was Matter Collected 13673 | 251 48 238 2642 83 . 491 518 573 910 134 1477 1032 307 332 43 735 421 1322 1882 234 Remotely 1603 | . . . 1249 . . . . . . . . . . . . . . . 120 234 Salvage Created 17698 | 104 112 350 3454 73 . 383 471 374 687 188 1780 1337 435 214 . 997 625 1451 3785 878 Parts 907 | 7 3 17 237 3 . 27 37 30 48 15 50 59 18 11 . 40 35 58 198 14 Haulers Intercepted 12 | . . . 6 . . . 3 . 2 . . . . . . . . . 1 . Recyclers Shooed 20 | . . . 12 . . 1 3 . 1 . . . . . . . 2 . 1 . Parts Field Recycled . | . . . . . . . . . . . . . . . . . . . . . Retrieved Matter . | . . . . . . . . . . . . . . . . . . . . . Parts Self-Destructed 76 | . . . . . . . . . . . . . 18 18 . 40 . . . . Prevented 1 | . . . . . . . . . . . . . 1 . . . . . . . Parts Restored . | . . . . . . . . . . . . . . . . . . . . . Kills | -11 -10 -10 -9 -9 -9 -8 -8 -8 -8 -7 -7 -7 -7 -7 -7 -6 -6 -6 -5 -5 ------- Run | Yrd Mat Min Mat Min Exi Min Mat Gar Mat Fac Gar Fac Low Low Zio Pro Fac Gar Fac Was Combat Hostiles Destroyed 347 | . 2 13 67 13 . 19 10 20 22 3 28 27 12 7 . 16 11 22 52 3 Melee 2 | . . . . . . . . . . . . 1 . . . . . . 1 . Guns 119 | . 2 10 . . . . . 1 . . 1 11 7 7 . 16 8 18 35 3 Cannons 90 | . . . 20 . . 5 4 12 12 3 20 14 . . . . . . . . AOE 131 | . . 2 47 13 . 14 6 7 10 . 6 1 5 . . . 3 4 13 . Classes Destroyed 22 | 2 2 2 8 1 . . 1 1 . 1 . . 1 . . . . 1 1 1 Worker 38 | . . . 20 . . 1 2 . 3 . . 2 . . . . 1 . 9 . Builder 45 | . . . 25 . . 1 . . 4 . . 1 . . . . 2 . 12 . Tunneler 10 | 2 . . 3 2 . . . . . . . 1 . . . . . . 2 . Hauler 12 | . . . 6 . . . 3 . 2 . . . . . . . . . 1 . Recycler 31 | 1 . . 18 . . 1 2 . 2 . . 1 . . . . 1 . 5 . Minesweeper 1 | . . . . . . . . . . . . . 1 . . . . . . . Mechanic 4 | . . . 2 . . . . . . . . 1 . . . . . . 1 . Operator 5 | . . . 3 . . . 1 . . . . 1 . . . . . . . . Watcher 17 | . 1 . 4 . . . 4 . . 3 . 3 . . . . 1 . 1 . Swarmer 69 | . . 9 3 . . 10 6 11 5 . . 2 5 5 . . 4 2 7 . Cutter 3 | . . . . . . . . 2 . . . . . . . . . 1 . . Grunt 168 | . 2 3 44 . . 7 1 3 11 . 17 14 6 2 . 11 5 11 31 . Brawler 16 | . . . 2 . . 1 . . 1 . 4 4 . . . 1 . 2 1 . Duelist 11 | . . . 4 . . 1 . . 1 . 1 1 . . . 2 . . 1 . Protector 8 | . . . 4 . . . . . 2 . . . . . . . . . 2 . Sentry 35 | . . 2 10 . . . 1 3 2 1 5 1 1 . . 2 . 6 1 . Specialist 2 | . . . . . . . . . . . . . . . . . . . 2 . Hunter 7 | . . . . . . . 2 1 . 1 1 1 . . . . 1 . . . Programmer 12 | . . . . . . . . . . 1 . 4 . . . . 1 . 6 . Heavy 1 | . . . . . . . . . . . . . . . . . . . 1 . Compactor 3 | . . . . . . . . . . . . . . . . . . . . 3 Assembled 13 | . . . . 13 . . . . . . . . . . . . . . . . Infiltrator 1 | . . . . . . . . . . . . . . . . . . 1 . . Best Kill Streak 20 | 3 2 6 20 15 . 4 6 8 11 1 5 4 6 3 . 4 5 4 14 1 Combat Bots Only 20 | . 2 6 20 13 . 4 3 8 7 1 5 4 6 3 . 4 4 4 7 1 Max Kills in Single Turn 7 | 1 1 2 5 7 . 4 3 4 3 1 2 2 3 2 . 1 3 2 7 1 Gunslinging 1 | . . 1 . . . . . . . . . 1 . . . . . 1 1 . Exploded 7 | . . 1 5 7 . 4 3 4 3 . 2 1 3 . . . 3 2 5 . Melee 1 | . . . . . . . . . . . . 1 . . . . . . 1 . Uniques/NPCs Destroyed . | . . . . . . . . . . . . . . . . . . . . . Combat | -11 -10 -10 -9 -9 -9 -8 -8 -8 -8 -7 -7 -7 -7 -7 -7 -6 -6 -6 -5 -5 -------- Run | Yrd Mat Min Mat Min Exi Min Mat Gar Mat Fac Gar Fac Low Low Zio Pro Fac Gar Fac Was Hostile Shots Fired 1147 | . 18 17 84 19 . 38 21 42 47 5 158 76 29 43 . 85 16 101 342 6 Missed 334 | . . 4 29 6 . 10 9 9 17 5 54 19 9 10 . 20 5 37 91 . Hits 813 | . 18 13 55 13 . 28 12 33 30 . 104 57 20 33 . 65 11 64 251 6 Melee 25 | . . . . . . . . 1 . . 2 . 1 . . 6 . . 9 6 Projectile 788 | . 18 13 55 13 . 28 12 32 30 . 102 57 19 33 . 59 11 64 242 . AOE 4 | . . . . . . . . . . . . 2 . . . . . 1 1 . Critical Strikes 31 | . . . 1 1 . 2 . . 4 . . . . 1 . 4 . 1 15 2 Damage Taken 12365 | . 232 111 811 115 . 317 173 336 420 16 863 911 267 402 . 1192 177 771 4948 303 Core 1259 | . 36 10 111 22 . 12 . 12 62 16 40 69 50 20 . 131 . 31 577 60 Absorbed by Shields 413 | . . . 160 45 . 77 . . . . 85 . . . . . . . 46 . Reduced by Siege Mode 143 | . . . . . . . . . . . . . . 4 . 23 . . 116 . Ignored by Resistances 628 | . . . . . . . 21 80 81 7 100 59 91 96 . 93 . . . . Regen/Repaired (Parts) 203 | . . . 22 . . . . . . . . 87 . . . . 94 . . . Core Remaining (%) 79 | 100 . 81 . . . 63 . . 86 . . . . . . 53 . 96 . . Volleys Fired 884 | 13 10 18 184 4 . 32 37 69 50 13 164 47 13 11 . 27 18 66 85 23 Largest 6 | 2 2 2 2 2 . 2 2 2 2 4 4 4 4 4 . 4 5 5 6 5 Hottest 250 | 60 100 100 74 66 . 74 74 97 74 160 167 167 117 112 . 250 147 154 206 165 Shots Fired 2083 | 25 17 31 289 8 . 51 65 101 89 43 267 178 45 44 . 102 72 260 312 84 Gun 1224 | 25 17 28 . . . . . 32 2 . 127 95 43 44 . 102 71 256 298 84 Cannon 642 | . . . 138 . . 40 61 63 77 43 132 83 . . . . . . 5 . Launcher 216 | . . 3 151 8 . 11 4 6 10 . 8 . 2 . . . 1 4 8 . Special 1 | . . . . . . . . . . . . . . . . . . . 1 . Kinetic 1587 | 13 4 . 138 . . 40 61 63 77 43 132 178 43 44 . 100 71 256 240 84 Thermal 258 | 12 13 28 . . . . . 32 2 . 127 . . . . 2 . . 42 . Explosive 216 | . . 3 151 8 . 11 4 6 10 . 8 . 2 . . . 1 4 8 . Electromagnetic 21 | . . . . . . . . . . . . . . . . . . . 21 . Robot Hit Streak 67 | 6 5 8 15 2 . 4 7 6 15 10 55 16 19 34 . 23 18 67 17 9 Robot Miss Streak 6 | 3 3 2 5 2 . 3 2 2 3 2 2 4 2 4 . 6 4 1 3 5 Penetration Max 2 | . . . . . . . . . . . 1 1 1 1 . 1 1 1 2 . Secondary Targets 27 | . . 3 . . . . . . . . . 1 1 3 . 4 . 2 12 1 Max Gunslinging Chain 2 | . . 1 . . . . . . . . . 1 1 1 . 1 . 1 2 1 Shots Hit Robots 1276 | 16 11 15 117 2 . 25 32 38 57 21 184 104 39 30 . 85 44 176 226 54 Core Hits 880 | 5 6 17 191 26 . 35 23 22 51 8 87 56 25 12 . 43 30 83 148 12 Critical Kills 23 | . . . . . . . . . . . . 1 . . . 2 1 2 15 2 Critical Parts Destroyed 24 | . . . . . . . . . . . . . . 1 . 1 2 4 16 . Critical Strikes 82 | . . 1 4 . . . 3 2 1 1 14 5 . 1 . 3 3 6 32 6 Burn 7 | . . 1 . . . . . . . . 5 . . . . . . . 1 . Meltdown 2 | . . . . . . . . . . . . . . . . . . . 2 . Destroy 49 | . . . . . . . . . . . . 1 . 1 . 3 3 6 29 6 Blast 24 | . . . 4 . . . 3 2 1 1 9 4 . . . . . . . . Melee Attacks 77 | . . . . . . . . . . . 11 . . . 1 . 19 18 28 . Impact 11 | . . . . . . . . . . . 11 . . . . . . . . . Slashing . | . . . . . . . . . . . . . . . . . . . . . Piercing 66 | . . . . . . . . . . . . . . . 1 . 19 18 28 . Sneak Attacks 8 | . . . . . . . . . . . . . . . . . 2 . 6 . Combat Hostiles . | . . . . . . . . . . . . . . . . . . . . . Follow-up Attacks . | . . . . . . . . . . . . . . . . . . . . . Damage Inflicted 48939 | 154 163 391 9789 915 . 1696 1447 1293 2952 544 5527 3611 1457 666 . 1910 1323 4218 9343 1540 Guns 19100 | 154 163 213 . . . . . 145 19 . 2041 1557 892 666 . 1891 994 3917 4908 1540 Cannons 10675 | . . . 2106 . . 421 759 798 1435 544 2429 1792 . . . . . . 391 . Explosions 17883 | . . 131 7616 915 . 1205 606 350 1452 . 983 250 565 . . . 201 301 3308 . Melee 931 | . . . . . . . . . . . 74 . . . . . 128 . 729 . Ramming 350 | . . 47 67 . . 70 82 . 46 . . 12 . . . 19 . . 7 . Kinetic 25933 | 75 24 . 2106 . . 421 759 798 1435 544 2429 3349 892 666 . 1735 994 3917 4249 1540 Thermal 5758 | 79 139 213 68 . . . 187 145 19 . 2041 74 . . . 156 . . 2637 . Explosive 15761 | . . 131 7548 915 . 1205 419 350 1452 . 983 176 565 . . . 201 301 1515 . Electromagnetic 206 | . . . . . . . . . . . . . . . . . . . 206 . Impact 74 | . . . . . . . . . . . 74 . . . . . . . . . Slashing . | . . . . . . . . . . . . . . . . . . . . . Piercing 857 | . . . . . . . . . . . . . . . . . 128 . 729 . Highest Corruption 15 | . . . 3 3 3 3 3 3 3 . . 3 3 3 3 . . . 7 15 Average Corruption 2 | . . . 3 3 3 3 1 3 2 . . 1 3 3 3 . . . 2 14 Corruption Purged 3 | . . . . . . . . . 3 . . . . . . . . . . . Corruption Blocked . | . . . . . . . . . . . . . . . . . . . . . Effects 178 | . . . 33 2 10 21 4 25 4 . . 13 15 30 . . . . 12 9 Message Errors 40 | . . . 5 . 5 3 1 7 . . . 6 4 6 . . . . 1 2 Matter Fused 37 | . . . 9 1 3 4 1 4 1 . . 1 2 9 . . . . 2 . Heat Flow Errors 19 | . . . 6 . . 4 . 4 . . . . 1 2 . . . . 2 . Energy Discharges 24 | . . . 3 1 1 4 . 3 1 . . 3 1 5 . . . . 1 1 Parts Rejected 2 | . . . . . . . . . . . . . . . . . . . 2 . Parts Fused 3 | . . . 1 . . . . . 1 . . . 1 . . . . . . . Data Loss (minor) 23 | . . . 3 . . 1 1 2 1 . . 1 4 6 . . . . 1 3 Data Loss (major) 10 | . . . 1 . . 5 . 1 . . . . 1 1 . . . . 1 . Misfires 10 | . . . 4 . . . 1 2 . . . 1 . 1 . . . . 1 . Alerts 5 | . . . . . 1 . . 2 . . . 1 1 . . . . . . . Weapon Failures 5 | . . . 1 . . . . . . . . . . . . . . . 1 3 Overload Shots 2 | . . . . . . . . 1 . . 1 . . . . . . . . . Overflow Damage 1110 | . . . 395 8 . 55 89 20 77 64 19 63 . . . . . . 320 . Projectiles 274 | . . . 65 . . . 30 19 21 64 1 25 . . . . . . 49 . Explosions 792 | . . . 330 8 . 55 56 1 56 . . 38 . . . . . . 248 . Melee 44 | . . . . . . . 3 . . . 18 . . . . . . . 23 . Knockbacks 69 | . . . 18 . . 5 7 6 6 3 11 13 . . . . . . . . Impact 4 | . . . 1 . . 1 1 . . . . 1 . . . . . . . . Kinetic 61 | . . . 16 . . 4 5 6 5 2 11 12 . . . . . . . . Secondary 4 | . . . 1 . . . 1 . 1 1 . . . . . . . . . . Self-Inflicted Damage 495 | . . . 214 . . 52 . 40 . . 7 83 . . . 9 . 28 62 . Shots 16 | . . . 7 . . 3 . 1 . . 1 1 . . . . . 1 2 . Rammed 34 | . . 8 10 . . 7 4 . 3 . . . . . . 1 . . 1 . Targets Rammed 40 | . . 8 14 . . 7 5 . 3 . . 1 . . . 1 . . 1 . Kicked . | . . . . . . . . . . . . . . . . . . . . . Crushed 6 | . . . 4 . . . 1 . . . . 1 . . . . . . . . Highest Temperature 484 | 20 240 96 265 16 . 294 36 276 348 222 484 141 150 294 . 442 165 395 438 274 Average Temperature 86 | 14 122 38 33 10 . 108 13 82 76 74 128 40 67 107 . 144 50 130 107 137 Received Heat Transfer 3969 | . 129 9 267 28 . 111 . 117 279 . 351 234 27 144 . 498 18 291 1466 . Effects 25 | . 3 . . . . 2 . 2 3 . 4 . . . . 1 . 3 2 5 Shutdowns 3 | . . . . . . . . . . . 2 . . . . 1 . . . . Energy Bleed 4 | . . . . . . . . . 1 . . . . . . . . 2 1 . Interference 16 | . 3 . . . . 2 . 2 2 . 2 . . . . . . . . 5 Short Circuit 1 | . . . . . . . . . . . . . . . . . . 1 . . Damage (minor) 1 | . . . . . . . . . . . . . . . . . . . 1 . Siege Activations 8 | . . . . . . . . . . . . . . 1 . 1 2 . 4 . Total Turns 133 | . . . . . . . . . . . . . . 4 . 25 13 . 91 . Longest Duration 47 | . . . . . . . . . . . . . . 4 . 25 7 . 47 . Martial Activations . | . . . . . . . . . . . . . . . . . . . . . Shielding Activations . | . . . . . . . . . . . . . . . . . . . . . Robots Disrupted . | . . . . . . . . . . . . . . . . . . . . . Combat Hostiles . | . . . . . . . . . . . . . . . . . . . . . Robots Corrupted 2 | . . . . . . . 1 . . . 1 . . . . . . . . . Combat Hostiles 1 | . . . . . . . . . . . 1 . . . . . . . . . Parts Fried . | . . . . . . . . . . . . . . . . . . . . . Impact Corruptions 3 | . . . . . . . 1 . . . 2 . . . . . . . . . Robots Melted 5 | . . 1 . . . . . . . . 1 . . . . . . . 3 . Combat Hostiles 4 | . . 1 . . . . . . . . . . . . . . . . 3 . Parts Melted 16 | . 2 7 . . . . . . . . 4 . . . . 1 . . 2 . Heat Transferred 9320 | 175 407 666 50 . . . 150 259 37 . 4329 50 . . . 225 . . 2972 . Parts Sabotaged . | . . . . . . . . . . . . . . . . . . . . . Parts Stolen . | . . . . . . . . . . . . . . . . . . . . . Parts Stripped . | . . . . . . . . . . . . . . . . . . . . . Power Chain Reactions . | . . . . . . . . . . . . . . . . . . . . . Alert | -11 -10 -10 -9 -9 -9 -8 -8 -8 -8 -7 -7 -7 -7 -7 -7 -6 -6 -6 -5 -5 ------- Run | Yrd Mat Min Mat Min Exi Min Mat Gar Mat Fac Gar Fac Low Low Zio Pro Fac Gar Fac Was Maximum Alert Level 5 | . . . 5 4 . . . 3 3 1 4 3 . . . . . 4 5 2 Low Security (%) 44 | 100 100 100 36 . . 100 100 14 . 97 13 . . . . . 100 18 . . Level 1 4 | . . . 8 . . . . 8 10 2 9 . . . . . . 8 . . Level 2 16 | . . . 10 . . . . 38 30 . 35 27 . . . . . 8 33 100 Level 3 24 | . . . 16 10 . . . 38 58 . 30 72 . . . . . 49 21 . Level 4 5 | . . . 12 89 . . . . . . 11 . . . . . . 15 17 . Level 5 1 | . . . . . . . . . . . . . . . . . . . 26 . High Security 2 | . . . 15 . . . . . . . . . . . . . . . . . Max Security . | . . . . . . . . . . . . . . . . . . . . . Sterilizations 1 | . . . 1 . . . . . . . . . . . . . . . . . Peak Influence 2212 | 10 50 131 2212 1136 . 114 128 1028 808 326 1291 1023 . . . . 116 1348 1821 635 Initial 1100 | . . 7 . 1100 . . 18 . 501 326 21 677 . . . . . 60 707 635 Average 498 | 1 6 39 751 1115 . 54 56 547 657 43 666 753 . . . . 41 764 1086 588 Influence Increases 13278 | 15 63 424 2809 44 . 526 466 1048 896 152 1280 1138 262 243 . 385 367 1348 1808 4 Destroy 0b10 Robot/C 6920 | . 40 320 1260 . . 380 200 460 500 60 560 600 240 200 . 320 220 560 1000 . Destroy 0b10 Robot/NC 935 | 15 5 . 425 10 . 15 60 . 80 20 35 65 5 . . . 25 10 165 . Destroy Leader 1126 | . 12 50 300 . . 60 64 20 120 36 40 128 10 30 . 30 42 20 164 . Allied During Kill 232 | . . 29 . . . . . 11 56 2 . 33 7 13 . 5 . 76 . . Trap Triggered on 0b10 30 | . . . 30 . . . . . . . . . . . . . . . . . Successful Hack 217 | . 6 . 19 . . . 10 . . 10 28 88 . . . . 28 28 . . Disable Machine 660 | . . . 150 . . . 90 30 75 . 30 165 . . . . 15 45 60 . Anti-Garrison Action 1450 | . . . . . . . . 400 . . 400 . . . . . . 450 200 . Destroy Structure 1378 | . . 25 535 34 . 71 42 82 50 9 127 59 . . . . 37 99 204 4 Partial Spotted 15 | . . . 15 . . . . . . . . . . . . . . . . . Lose Combat Pursuer 315 | . . . 75 . . . . 45 15 15 60 . . . . 30 . 60 15 . Influence Decreases 12987 | 15 43 444 597 1400 1094 479 513 20 1205 841 19 1695 671 568 . 385 281 86 1339 1292 Entered New Map 6214 | . . 13 . 1350 1094 . 29 . 527 393 9 614 273 63 . . . 26 641 1182 Time Decay 5378 | 15 43 391 594 40 . 469 322 . 498 298 . 601 398 495 . 375 281 . 478 80 Lost Part 311 | . . . 3 10 . 10 8 . 10 . 10 10 . 10 . 10 . . 200 30 Lost Ally 180 | . . 40 . . . . . 20 20 . . 20 . . . . . 60 20 . Purge Threat 904 | . . . . . . . 154 . 150 150 . 450 . . . . . . . . Squads Dispatched 53 | . . . 14 . . . 2 . 5 2 . 11 . . . . 3 . 16 . Investigation 8 | . . . . . . . 1 . 1 . . 2 . . . . 2 . 2 . Extermination 8 | . . . . . . . . . . 2 . 3 . . . . 1 . 2 . Reinforcement 17 | . . . 9 . . . 1 . . . . 3 . . . . . . 4 . Assault 17 | . . . 5 . . . . . 3 . . 2 . . . . . . 7 . Garrison 3 | . . . . . . . . . 1 . . 1 . . . . . . 1 . Intercept . | . . . . . . . . . . . . . . . . . . . . . Searches Triggered . | . . . . . . . . . . . . . . . . . . . . . Construction Impeded 8 | . . . 5 . . . 1 . . . . 1 . . . . . . 1 . Haulers Reinforced 2 | . . . . . . . . . . . . 1 . . . . . . 1 . Active Scanning Responses . | . . . . . . . . . . . . . . . . . . . . . Cargo Convoy Interrupts 1 | . . . . . . . . . . . . 1 . . . . . . . . Stealth | -11 -10 -10 -9 -9 -9 -8 -8 -8 -8 -7 -7 -7 -7 -7 -7 -6 -6 -6 -5 -5 --------- Run | Yrd Mat Min Mat Min Exi Min Mat Gar Mat Fac Gar Fac Low Low Zio Pro Fac Gar Fac Was Distress Signals 23 | . . . 4 . . . 5 . 4 . . 1 . . . . 1 . 8 . Communications Jammed . | . . . . . . . . . . . . . . . . . . . . . Distress Signals . | . . . . . . . . . . . . . . . . . . . . . Times Spotted 434 | . 5 13 82 16 . 18 19 18 35 5 24 43 13 10 . 18 12 30 68 5 Peak Tracking Total 18 | . 2 3 6 18 . 4 5 5 5 1 4 5 7 4 . 5 4 5 10 2 Tactical Retreats 17 | . . . 5 . . . . 3 1 1 2 . . . . 2 . 2 1 . Traps | -11 -10 -10 -9 -9 -9 -8 -8 -8 -8 -7 -7 -7 -7 -7 -7 -6 -6 -6 -5 -5 ------- Run | Yrd Mat Min Mat Min Exi Min Mat Gar Mat Fac Gar Fac Low Low Zio Pro Fac Gar Fac Was Traps Triggered 10 | . . . . . . . 2 . . . 1 3 . . . . 2 1 1 . Indirectly . | . . . . . . . . . . . . . . . . . . . . . Trap Hack Attempts . | . . . . . . . . . . . . . . . . . . . . . Triggered . | . . . . . . . . . . . . . . . . . . . . . Disarmed . | . . . . . . . . . . . . . . . . . . . . . Reprogrammed . | . . . . . . . . . . . . . . . . . . . . . Reused 3 | . . . 3 . . . . . . . . . . . . . . . . . Traps Extracted . | . . . . . . . . . . . . . . . . . . . . . Installed 3 | . . . 3 . . . . . . . . . . . . . . . . . Triggered 3 | . . . 3 . . . . . . . . . . . . . . . . . Most Traps Carried 3 | . . 3 3 . . . . . . . . . . . . . . . . . Machines | -11 -10 -10 -9 -9 -9 -8 -8 -8 -8 -7 -7 -7 -7 -7 -7 -6 -6 -6 -5 -5 ---------- Run | Yrd Mat Min Mat Min Exi Min Mat Gar Mat Fac Gar Fac Low Low Zio Pro Fac Gar Fac Was Machines Disabled 75 | . . 1 16 . . . 6 9 5 . 10 11 . . . . 1 12 4 . Max in Single Turn 3 | . . . 2 . . . 2 2 1 . 2 2 . . . . 1 2 3 . Garrison Access 3 | . . . . . . . . . 1 1 . . . . . . . . 1 . Garrison Relay 16 | . . . . . . . . 5 . . 5 . . . . . . 6 . . Phase Generator 3 | . . . . . . . . 1 . . 1 . . . . . . 1 . . Machines Repaired . | . . . . . . . . . . . . . . . . . . . . . Machines Dismantled . | . . . . . . . . . . . . . . . . . . . . . Machines Sabotaged . | . . . . . . . . . . . . . . . . . . . . . Overloaded Fab Kills . | . . . . . . . . . . . . . . . . . . . . . Hacking | -11 -10 -10 -9 -9 -9 -8 -8 -8 -8 -7 -7 -7 -7 -7 -7 -6 -6 -6 -5 -5 --------- Run | Yrd Mat Min Mat Min Exi Min Mat Gar Mat Fac Gar Fac Low Low Zio Pro Fac Gar Fac Was Machines Accessed 53 | . 1 . 6 . 4 . 7 2 4 5 3 8 . 1 . . 7 1 4 . Terminals 29 | . 1 . 4 . . . 5 2 3 2 3 4 . . . . 3 1 1 . Fabricators 2 | . . . . . . . . . . . . 1 . . . . 1 . . . Repair Stations 5 | . . . 2 . . . . . . . . 1 . . . . 1 . 1 . Recycling Units . | . . . . . . . . . . . . . . . . . . . . . Scanalyzers 6 | . . . . . . . 1 . 1 1 . 1 . . . . 1 . 1 . Garrison Access 6 | . . . . . . . 1 . . 2 . 1 . . . . 1 . 1 . Total Hacks 120 | . 4 . 14 . 8 . 18 4 8 10 5 20 . 1 . . 16 3 9 . Successful 58 | . 1 . 7 . 8 . 7 1 2 7 2 10 . 1 . . 6 2 4 . Failed 59 | . 3 . 6 . . . 10 3 6 3 3 10 . . . . 10 1 4 . Catastrophic 13 | . 1 . 3 . . . 3 . 2 1 . 2 . . . . . . 1 . Database Lockouts 3 | . . . 1 . . . 1 . . . . . . . . . . . 1 . Manual 54 | . 4 . 7 . 1 . 14 . 4 6 . 9 . . 3 . 3 2 1 . Terminals 70 | . 4 . 9 . . . 14 4 7 7 5 11 . . . . 5 3 1 . Fabricators 4 | . . . . . . . . . . . . 1 . . . . 3 . . . Repair Stations 14 | . . . 5 . . . . . . . . 4 . . . . 2 . 3 . Recycling Units . | . . . . . . . . . . . . . . . . . . . . . Scanalyzers 14 | . . . . . . . 3 . 1 1 . 2 . . . . 5 . 2 . Garrison Access 9 | . . . . . . . 1 . . 2 . 2 . . . . 1 . 3 . Terminal Hacks 31 | . 1 . 3 . 8 . 3 1 1 3 2 5 . 1 . . . 2 1 . Record 7 | . . . . . 7 . . . . . . . . . . . . . . . Robot Analysis 4 | . 1 . 2 . . . 1 . . . . . . . . . . . . . Open Door 2 | . . . . . . . . 1 . . . . . 1 . . . . . . Branch Access Points 2 | . . . . . . . . . . . . 1 . . . . . . 1 . Emergency Access Points 1 | . . . . . . . . . . . 1 . . . . . . . . . Alert Level 3 | . . . 1 . . . . . . 2 . . . . . . . . . . Unreport Threat 7 | . . . . . . . 2 . 1 1 . 3 . . . . . . . . Zone Layout 1 | . . . . . . . . . . . . 1 . . . . . . . . Garrison Registry 2 | . . . . . . . . . . . 1 . . . . . . 1 . . Patrol Navigation 1 | . . . . . . . . . . . . . . . . . . 1 . . Proto ID Catalog 1 | . . . . . 1 . . . . . . . . . . . . . . . Fabricator Hacks 1 | . . . . . . . . . . . . 1 . . . . . . . . Build 1 | . . . . . . . . . . . . 1 . . . . . . . . Repair Station Hacks 8 | . . . 3 . . . . . . . . 2 . . . . 2 . 1 . Scan Component 5 | . . . 2 . . . . . . . . 1 . . . . 1 . 1 . Repair 3 | . . . 1 . . . . . . . . 1 . . . . 1 . . . Recycling Unit Hacks . | . . . . . . . . . . . . . . . . . . . . . Scanalyzer 8 | . . . . . . . 2 . 1 1 . 1 . . . . 2 . 1 . Insert Component 1 | . . . . . . . 1 . . . . . . . . . . . . . Analyze 1 | . . . . . . . 1 . . . . . . . . . . . . . Retrieve Study 6 | . . . . . . . . . 1 1 . 1 . . . . 2 . 1 . Garrison Access Hacks 4 | . . . . . . . 1 . . 2 . . . . . . 1 . . . Unlock Access 3 | . . . . . . . 1 . . 1 . . . . . . 1 . . . Seal Access 1 | . . . . . . . . . . 1 . . . . . . . . . . Unauthorized Hacks 6 | . . . 1 . . . 1 . . 1 . 1 . . . . 1 . 1 . Terminals 5 | . . . 1 . . . 1 . . 1 . 1 . . . . 1 . . . Botnet 5 | . . . 1 . . . 1 . . 1 . 1 . . . . 1 . . . Fabricators . | . . . . . . . . . . . . . . . . . . . . . Repair Stations . | . . . . . . . . . . . . . . . . . . . . . Recycling Units . | . . . . . . . . . . . . . . . . . . . . . Scanalyzers . | . . . . . . . . . . . . . . . . . . . . . Garrison Access 1 | . . . . . . . . . . . . . . . . . . . 1 . Jam 1 | . . . . . . . . . . . . . . . . . . . 1 . Data Cores Recovered 2 | . . . . . . . 1 . . . . 1 . . . . . . . . Used 1 | . . . . . . . . . . . . 1 . . . . . . . . Hacking Detections 40 | . 1 . 4 . . . 6 1 3 4 3 8 . . . . 5 1 4 . Full Trace Events 6 | . . . . . . . 1 . 1 . . 2 . . . . 1 . 1 . Feedback Events 1 | . . . . . . . . . . . . . . . . . . . 1 . Corruption 1 | . . . . . . . . . . . . . . . . . . . 1 . Feedback Blocked . | . . . . . . . . . . . . . . . . . . . . . Robot Schematics Acquired 3 | . . . . . . . . . . . . . . . 3 . . . . . Robots Built 2 | . . . . . . . . . . . . 2 . . . . . . . . Authchips . | . . . . . . . . . . . . . . . . . . . . . Time 67 | . . . . . . . . . . . . 67 . . . . . . . . Total Robot Build Rating 8 | . . . . . . . . . . . . 8 . . . . . . . . Part Schematics Acquired 17 | . . . . . . . 1 . . . . . . . 16 . . . . . Parts Built . | . . . . . . . . . . . . . . . . . . . . . Authchips . | . . . . . . . . . . . . . . . . . . . . . Time . | . . . . . . . . . . . . . . . . . . . . . Total Part Build Rating . | . . . . . . . . . . . . . . . . . . . . . Part Studies Acquired 6 | . . . . . . . . . 1 1 . 1 . . . . 2 . 1 . Parts Repaired 3 | . . . 1 . . . . . . . . 1 . . . . 1 . . . Time 118 | . . . 44 . . . . . . . . 18 . . . . 56 . . . Parts Recycled . | . . . . . . . . . . . . . . . . . . . . . Recycled Matter . | . . . . . . . . . . . . . . . . . . . . . Retrieved Matter . | . . . . . . . . . . . . . . . . . . . . . Retrieved Components . | . . . . . . . . . . . . . . . . . . . . . Parts Scanalyzed 1 | . . . . . . . 1 . . . . . . . . . . . . . Part Schematics Acquired 1 | . . . . . . . 1 . . . . . . . . . . . . . Parts Damaged . | . . . . . . . . . . . . . . . . . . . . . Bothacking | -11 -10 -10 -9 -9 -9 -8 -8 -8 -8 -7 -7 -7 -7 -7 -7 -6 -6 -6 -5 -5 ------------ Run | Yrd Mat Min Mat Min Exi Min Mat Gar Mat Fac Gar Fac Low Low Zio Pro Fac Gar Fac Was Used RIF Installer . | . . . . . . . . . . . . . . . . . . . . . Robots Hacked 1 | . . . . . . . . . . . . . . . . . . . 1 . Non-combat 1 | . . . . . . . . . . . . . . . . . . . 1 . Combat . | . . . . . . . . . . . . . . . . . . . . . Robot Hacks Applied 1 | . . . . . . . . . . . . . . . . . . . 1 . find_chute 1 | . . . . . . . . . . . . . . . . . . . 1 . Relay Couplers Released 69 | . . . . . . . . 20 3 . 18 . . . . . . 25 3 . Machine Destruction 66 | . . . . . . . . 20 3 . 18 . . . . . . 25 . . Programmers 3 | . . . . . . . . . . . . . . . . . . . 3 . Fabnet Peak Effective % . | . . . . . . . . . . . . . . . . . . . . . Robots Rewired 8 | . . . . . . . . 3 . . . . 1 . . 1 . 3 . . Allies Hacked . | . . . . . . . . . . . . . . . . . . . . . Hacks Repelled . | . . . . . . . . . . . . . . . . . . . . . Allies | -11 -10 -10 -9 -9 -9 -8 -8 -8 -8 -7 -7 -7 -7 -7 -7 -6 -6 -6 -5 -5 -------- Run | Yrd Mat Min Mat Min Exi Min Mat Gar Mat Fac Gar Fac Low Low Zio Pro Fac Gar Fac Was Total Allies 15 | . . 3 . . . . . 3 . . . 2 1 . . 1 . 5 . . Largest Group 3 | . . 3 . . . . . 3 2 1 . 2 1 1 . 1 . 3 1 . Highest-Rated Group 124 | . . 40 . . . . . 84 59 39 . 74 30 27 . 20 . 124 62 . Highest-Rated Ally 62 | . . 16 . . . . . 39 39 39 . 37 30 27 . 20 . 62 62 . Initial Warlord ECA Mod 30 | . . . . . . . . . 10 9 9 19 19 19 19 18 18 18 30 30 Total Orders 4 | . . 1 . . . . . . . . . 1 . . . . . 2 . . STAY 3 | . . 1 . . . . . . . . . 1 . . . . . 1 . . FOLLOW 1 | . . . . . . . . . . . . . . . . . . 1 . . Ally Attacks 145 | . . 25 . . . . . 20 39 4 . 22 . 6 . . . 27 2 . Total Damage 2699 | . . 281 . . . . . 258 551 44 . 524 . 167 . . . 783 91 . Kills 30 | . . 3 . . . . . 3 8 1 . 6 . 3 . . . 6 . . Allies Corrupted . | . . . . . . . . . . . . . . . . . . . . . Allies Melted 1 | . . . . . . . . 1 . . . . . . . . . . . . Intel | -11 -10 -10 -9 -9 -9 -8 -8 -8 -8 -7 -7 -7 -7 -7 -7 -6 -6 -6 -5 -5 ------- Run | Yrd Mat Min Mat Min Exi Min Mat Gar Mat Fac Gar Fac Low Low Zio Pro Fac Gar Fac Was Active Infowar (turns) 3460 | 14 353 1615 1478 . . . . . . . . . . . . . . . . . Seismic 3460 | 14 353 1615 1478 . . . . . . . . . . . . . . . . . Robot Analysis Total 4 | . 1 . 2 . . . 1 . . . . . . . . . . . . . Derelict Logs Recovered 4 | . . 1 . . . . . . . . . . 1 1 . 1 . . . . Drone Launches . | . . . . . . . . . . . . . . . . . . . . . Drone Recoveries . | . . . . . . . . . . . . . . . . . . . . . Exploration | -11 -10 -10 -9 -9 -9 -8 -8 -8 -8 -7 -7 -7 -7 -7 -7 -6 -6 -6 -5 -5 ------------- Run | Yrd Mat Min Mat Min Exi Min Mat Gar Mat Fac Gar Fac Low Low Zio Pro Fac Gar Fac Was Turns Passed 24804 | 73 353 1615 3016 89 583 1381 975 1212 1320 1109 1740 1925 953 1689 1641 1431 991 1312 1228 168 Spaces Moved 12416 | 22 192 552 1262 44 359 521 484 578 491 640 765 1104 614 1027 1076 951 548 642 504 40 Core . | . . . . . . . . . . . . . . . . . . . . . Treads 6999 | 14 192 552 1262 44 359 521 484 578 491 493 765 431 . 151 . 11 12 343 296 . Legs 8 | 8 . . . . . . . . . . . . . . . . . . . . Wheels 5409 | . . . . . . . . . . 147 . 673 614 876 1076 940 536 299 208 40 Hover . | . . . . . . . . . . . . . . . . . . . . . Flight . | . . . . . . . . . . . . . . . . . . . . . Fastest Speed 110 | 120 160 160 160 160 160 240 160 160 160 145 160 130 145 130 130 130 120 120 110 125 Average Speed 153 | 145 160 160 160 160 160 240 160 160 160 157 160 150 145 152 130 130 137 145 137 185 Slowest Speed 330 | 160 160 160 160 160 240 240 240 160 160 160 160 160 145 240 130 160 240 225 330 215 Overloaded Moves . | . . . . . . . . . . . . . . . . . . . . . Propulsion Burnouts . | . . . . . . . . . . . . . . . . . . . . . Robots Hopped . | . . . . . . . . . . . . . . . . . . . . . Potential Cave-ins . | . . . . . . . . . . . . . . . . . . . . . Cave-ins Triggered . | . . . . . . . . . . . . . . . . . . . . . Exploration Rate (%) 59 | 4 36 92 90 15 62 97 48 81 53 22 89 35 90 98 84 97 19 75 19 33 Regions Visited 20 Branch Regions 8 Pre-discovered Areas 5 | . . . . . 1 . . . . . . . 1 . 3 . . . . . Known Exits Taken 6 | . . . . . . . 1 . . 1 . 1 1 . . 1 1 . . . Unknown Exits Taken 10 | 1 1 1 1 1 1 1 . . 1 . . . . 1 1 . . . . . Scrap Searched 16 | . . 1 . 1 . 1 . . . . . . 1 6 3 3 . . . . Spaces Dug 41 | . . . 2 . . 3 1 . . 1 4 . . . . . 16 4 10 . Terrain Destroyed 1643 | . . 32 760 65 . 94 50 128 41 7 123 58 20 . . 4 42 113 100 6 Melee 34 | . . . . . . . . . . . 4 . . . . . 16 4 10 . Projectile 137 | . . . 34 . . 12 9 2 9 7 4 20 1 . . 3 5 5 20 6 AOE 1465 | . . 32 726 65 . 82 41 126 32 . 115 38 19 . . . 20 101 68 . Terrain Rammed . | . . . . . . . . . . . . . . . . . . . . . Walls Destroyed . | . . . . . . . . . . . . . . . . . . . . . Machines Disabled . | . . . . . . . . . . . . . . . . . . . . . Actions | -11 -10 -10 -9 -9 -9 -8 -8 -8 -8 -7 -7 -7 -7 -7 -7 -6 -6 -6 -5 -5 --------- Run | Yrd Mat Min Mat Min Exi Min Mat Gar Mat Fac Gar Fac Low Low Zio Pro Fac Gar Fac Was Total 16356 | 41 220 1251 1967 54 370 587 615 761 935 730 1039 1249 646 1119 1323 1073 697 833 771 75 Wait 2366 | 1 5 658 433 5 . 18 51 91 360 35 61 65 11 66 219 66 85 52 83 1 Move 12400 | 21 191 551 1261 43 358 520 484 577 490 640 764 1103 613 1026 1075 950 548 641 504 40 Hop . | . . . . . . . . . . . . . . . . . . . . . Pick Up 119 | . 8 7 17 . 1 . 11 3 5 12 7 7 1 3 11 3 4 8 11 . Fast Attach 72 | 1 1 . 9 . . . 6 . 2 4 2 6 1 1 2 1 6 4 22 4 Attach 43 | 2 . . 1 . 3 . 2 . 1 2 1 1 . 3 1 6 1 3 14 2 Detach 14 | . 1 . 4 . 2 . . . . . . . . . 1 . . . 5 1 Swap 147 | 1 4 3 17 2 2 10 8 11 15 5 17 8 3 3 . 2 11 11 11 3 Drop 149 | 2 . 6 24 . 4 . 11 . 9 19 12 11 2 6 13 3 5 14 7 1 Fire 884 | 13 10 18 184 4 . 32 37 69 50 13 164 47 13 11 . 27 18 66 85 23 Melee 77 | . . . . . . . . . . . 11 . . . 1 . 19 18 28 . Ram 1 | . . . . . . . . . . . . . . . . 1 . . . . Kick . | . . . . . . . . . . . . . . . . . . . . . Crush 39 | . . 8 14 . . 7 5 . 3 . . 1 . . . . . . 1 . Escape Stasis 9 | . . . . . . . . 1 . . . . . . . . . 8 . . Rewire 33 | . . . . . . . . 9 . . . . 2 . . 14 . 8 . . Trap 3 | . . . 3 . . . . . . . . . . . . . . . . . Miscellaneous . | . . . . . . . . . . . . . . . . . . . . . Route ------- -11/Scrapyard -10/Materials (discovered 2 exits: *Mat / [*Min]) -10/Mines (discovered 2 exits: *Mat x2) -9/Materials (discovered 4 exits: *Mat x2 / [*Min x2]) -9/Mines -9/Exiles (discovered 2 exits: [*Min x2]) -8/Mines (discovered 2 exits: *Mat x2) -8/Materials -8/Garrison (discovered 3 exits: *Mat x3) -8/Materials (discovered 2 exits: *Fac x2) -7/Factory -7/Garrison (discovered 3 exits: *Fac x3) -7/Factory (discovered 5 exits: *Fac / Sto x2 / *Low x2) -7/Lower Caves -7/Lower Caves (discovered 2 exits: *Fac / *Zio) -7/Zion (discovered 2 exits: Dee / [*Pro]) -6/Proximity Caves -6/Factory (discovered 3 exits: Fac / Low / Gar) -6/Garrison (discovered 3 exits: *Fac x3) -5/Factory (discovered 3 exits: [*Fac] / Upp x2) -5/Waste History --------- Turn | Location | Event 28 | -11/Scrapyard | Discovered new exit (range 2) 74 | -11/Scrapyard | Entered Materials 177 | -10/Materials | Discovered new exit (range 16) 305 | -10/Materials | Discovered new exit (range 4) 306 | -10/Materials | Build established: Mutant 427 | -10/Materials | Entered Mines 468 | -10/Mines | Discovered new exit (range 7) 668 | -10/Mines | Learned Materials stockpile data 690 | -10/Mines | Received a Rocket Launcher from a helpful Derelict 797 | -10/Mines | Found a hidden stash of uninstalled traps 835 | -10/Mines | Assisted by bots powering up and referring to "LRC-V3" 876 | -10/Mines | Discovered new exit (range 5) 2042 | -10/Mines | Entered Materials 2042 | -9/Materials | Evolved 2 slots: Propulsion x1, Utility x1 2272 | -9/Materials | Discovered new exit (range 7) 2416 | -9/Materials | Discovered new exit (range 4) 2492 | -9/Materials | Central database locked down 2927 | -9/Materials | Build established: Scavenger-Mutant 2961 | -9/Materials | Discovered new exit (range 16) 3520 | -9/Materials | Repaired Broken Shield Generator 3642 | -9/Materials | First assault squad dispatched 3648 | -9/Materials | Build established: Mutant 3886 | -9/Materials | Discovered new exit (range 7) 4580 | -9/Materials | High security lockdown imminent 4660 | -9/Materials | High security lockdown engaged 4739 | -9/Materials | Sterilization system engaged 4739 | -9/Materials | Non-combat units ordered to evacuate 4787 | -9/Materials | Destroyed 20 combat bots 4839 | -9/Materials | Combat units ordered to evacuate 5039 | -9/Materials | Ambient heat levels rising (+10) 5058 | -9/Materials | Entered Mines 5059 | -9/Mines | Assembled infested the area 5071 | -9/Mines | Met 8R-AWN 5089 | -9/Mines | Destroyed 13 combat bots 5141 | -9/Mines | Discovered new exit (range 5) 5147 | -9/Mines | Entered Exiles 5173 | -9/Exiles | Discovered new exit (range 15) 5193 | -9/Exiles | Welcomed by 8R-AWN 5215 | -9/Exiles | Met EX-HEX 5258 | -9/Exiles | Met EX-BIN 5277 | -9/Exiles | Aligned with FarCom system 5279 | -9/Exiles | Given EX-Vault access code 5322 | -9/Exiles | Opened EX-Vault 5335 | -9/Exiles | Found YOLO Cannon 5366 | -9/Exiles | Warned to stay clear of 0b10 Research branches 5408 | -9/Exiles | Met EX-DEC 5422 | -9/Exiles | Learned location of Zion (-7) 5715 | -9/Exiles | Discovered new exit (range 10) 5730 | -9/Exiles | Left Exiles lab with YOLO Cannon 5730 | -9/Exiles | Entered Mines 5853 | -8/Mines | Discovered new exit (range 9) 6083 | -8/Mines | Discovered new exit (range 8) 7111 | -8/Mines | Entered Materials 7111 | -8/Materials | Evolved 2 slots: Propulsion x1, Utility x1 7250 | -8/Materials | Central database locked down 7655 | -8/Materials | Build established: Scavenger-Mutant 8086 | -8/Materials | Identified exit to Garrison 8086 | -8/Materials | Entered Garrison 8153 | -8/Garrison | Phase Generator disabled 8312 | -8/Garrison | Garrison Relay disabled 8408 | -8/Garrison | Destroyed 8 combat bots 8511 | -8/Garrison | Garrison Relay disabled 8529 | -8/Garrison | Discovered new exit (range 10) 8586 | -8/Garrison | Triggered checkpoint 8754 | -8/Garrison | Triggered checkpoint 8764 | -8/Garrison | Triggered checkpoint 8877 | -8/Garrison | Discovered new exit (range 8) 8916 | -8/Garrison | Triggered checkpoint 9070 | -8/Garrison | Discovered new exit (range 8) 9091 | -8/Garrison | Garrison Relay disabled 9232 | -8/Garrison | Garrison Relay disabled 9298 | -8/Garrison | Entered Materials 9298 | -8/Materials | Accompanied by 2 allies 9312 | -8/Materials | Garrison activated, responded to threat 9615 | -8/Materials | Destroyed 7 combat bots 9660 | -8/Materials | Discovered new exit (range 15) 9698 | -8/Materials | First assault squad dispatched 9743 | -8/Materials | Build established: Mutant 9928 | -8/Materials | Discovered new exit (range 16) 10618 | -8/Materials | Entered Factory 10618 | -7/Factory | Accompanied by 1 ally 10618 | -7/Factory | Evolved 2 slots: Weapon x2 10995 | -7/Factory | Build established: Tank 11727 | -7/Factory | Identified exit to Garrison 11727 | -7/Factory | Entered Garrison 11801 | -7/Garrison | Garrison Relay disabled 11988 | -7/Garrison | Triggered checkpoint 12020 | -7/Garrison | Triggered checkpoint 12193 | -7/Garrison | Garrison Relay disabled 12233 | -7/Garrison | Discovered new exit (range 10) 12328 | -7/Garrison | Triggered checkpoint 12352 | -7/Garrison | Build established: Skirmisher 12410 | -7/Garrison | Discovered new exit (range 13) 12422 | -7/Garrison | Phase Generator disabled 12733 | -7/Garrison | Triggered checkpoint 12771 | -7/Garrison | Garrison Relay disabled 12889 | -7/Garrison | Build established: Scavenger-Tank 12981 | -7/Garrison | Discovered new exit (range 15) 13166 | -7/Garrison | Triggered checkpoint 13312 | -7/Garrison | Triggered checkpoint 13348 | -7/Garrison | Discovered new exit (range 40) 13348 | -7/Garrison | Discovered new exit (range 25) 13348 | -7/Garrison | Discovered new exit (range 87) 13348 | -7/Garrison | Garrison Relay disabled 13354 | -7/Garrison | Build established: Tank 13417 | -7/Garrison | Garrison Relay disabled 13467 | -7/Garrison | Entered Factory 13701 | -7/Factory | Discovered new exit (range 8) 13733 | -7/Factory | Fabricated P-60 Hacker? 13734 | -7/Factory | Garrison activated, responded to threat 13867 | -7/Factory | First assault squad dispatched 13913 | -7/Factory | Identified exit to Factory 13918 | -7/Factory | Build established: Scavenger-Tank 14299 | -7/Factory | Discovered new exit (range 16) 14543 | -7/Factory | Build established: Tank 14865 | -7/Factory | Cargo convoy interrupted 14907 | -7/Factory | Identified exit to Storage 14907 | -7/Factory | Identified exit to Lower Caves 15334 | -7/Factory | Repaired Neutrino Core 15392 | -7/Factory | Entered Lower Caves 15393 | -7/Lower Caves | Encountered a Warlord checkpoint 15425 | -7/Lower Caves | Attracted the attention of an 0b10 outpost 15474 | -7/Lower Caves | Met a Warlord Commander 15475 | -7/Lower Caves | Learned location of Warlord (-4) 15476 | -7/Lower Caves | Warlord Commander delivered Encrypted Comm Array 15480 | -7/Lower Caves | Found Encrypted Comm Array 15595 | -7/Lower Caves | Identified exit to Lower Caves 16345 | -7/Lower Caves | Entered another Lower Caves area 16345 | -7/Lower Caves | Accompanied by 1 ally 16395 | -7/Lower Caves | Discovered exit to Factory (range 8) 17025 | -7/Lower Caves | Discovered new exit (range 9) 17322 | -7/Lower Caves | Encountered a Warlord checkpoint 17470 | -7/Lower Caves | Learned 12 Factory zone layouts 17487 | -7/Lower Caves | Entered a destroyed Warlord outpost 18034 | -7/Lower Caves | Entered Zion 18077 | -7/Zion | System corruption cleaned by Quarantine Array 18121 | -7/Zion | Discovered new exit (range 14) 18290 | -7/Zion | Learned location of Armory (-4) 18299 | -7/Zion | Given A8's code to call for help 18358 | -7/Zion | Received a hallucinogenic algorithm 18372 | -7/Zion | Identified exit to Deep Caves 18403 | -7/Zion | Found Prototype Energy Gun 18403 | -7/Zion | Identified Storm Laser 18467 | -7/Zion | Ran a hallucination algorithm 18698 | -7/Zion | Ran a hallucination algorithm 18759 | -7/Zion | Learned location of Data Miner (-6) 18837 | -7/Zion | Rebuked by Imprinter 18952 | -7/Zion | Found CR-A16's Pointy Stick 19204 | -7/Zion | Ran a hallucination algorithm 19642 | -7/Zion | Found Prototype Special Weapon 19645 | -7/Zion | Found Prototype Special Weapon 19648 | -7/Zion | Found Prototype Special Weapon 19675 | -7/Zion | Entered Proximity Caves 20242 | -6/Proximity Caves | Attracted the attention of an 0b10 outpost 20948 | -6/Proximity Caves | Attracted the attention of an 0b10 checkpoint 21106 | -6/Proximity Caves | Entered Factory 21106 | -6/Factory | Evolved 2 slots: Utility x1, Weapon x1 21107 | -6/Factory | Identified exit to Lower Caves 21107 | -6/Factory | Identified exit to Factory 21654 | -6/Factory | Repaired Neutrino Core 22097 | -6/Factory | Identified exit to Garrison 22097 | -6/Factory | Entered Garrison 22117 | -6/Garrison | Triggered checkpoint 22186 | -6/Garrison | Garrison Relay disabled 22338 | -6/Garrison | Phase Generator disabled 22422 | -6/Garrison | Triggered checkpoint 22487 | -6/Garrison | Triggered checkpoint 22499 | -6/Garrison | Garrison Relay disabled 22524 | -6/Garrison | Triggered checkpoint 22589 | -6/Garrison | Triggered checkpoint 22681 | -6/Garrison | Discovered exit to Factory (range 12) 22737 | -6/Garrison | Triggered checkpoint 22765 | -6/Garrison | Garrison Relay disabled 22778 | -6/Garrison | Discovered exit to Factory (range 18) 22778 | -6/Garrison | Discovered exit to Factory (range 76) 22778 | -6/Garrison | Discovered exit to Factory (range 54) 22868 | -6/Garrison | Build established: Scavenger-Tank 22951 | -6/Garrison | Triggered checkpoint 23137 | -6/Garrison | Triggered checkpoint 23221 | -6/Garrison | Garrison Relay disabled 23279 | -6/Garrison | Found embedded Infiltrators 23409 | -6/Garrison | Entered Factory 23409 | -5/Factory | Accompanied by 1 ally 23409 | -5/Factory | Evolved 2 slots: Utility x1, Weapon x1 23592 | -5/Factory | Central database locked down 23625 | -5/Factory | Identified exit to Upper Caves 23706 | -5/Factory | Build established: Executioner 23709 | -5/Factory | First assault squad dispatched 23906 | -5/Factory | Destroyed 7 combat bots 23952 | -5/Factory | Garrison activated, responded to threat 24170 | -5/Factory | Lost 15 parts (3n4u8w) 24252 | -5/Factory | Core integrity fell below 50% 24286 | -5/Factory | Destroyed 7 combat bots 24433 | -5/Factory | Discovered new exit (range 7) 24637 | -5/Factory | Sucked down chute 24637 | -5/Factory | Entered Waste 24641 | -5/Waste | Found Prototype Device 24641 | -5/Waste | Identified Exp. Actuator Array 24649 | -5/Waste | Spotted C-40 Crusher 24652 | -5/Waste | EMP discharged 24652 | -5/Waste | System corruption reached 10% 24700 | -5/Waste | Spotted C-40 Crusher 24709 | -5/Waste | Destroyed C-40 Crusher 24726 | -5/Waste | Crushed by Compactor (1 part destroyed, 2 dropped) 24729 | -5/Waste | Crushed by Compactor (1 part destroyed, 2 dropped) 24732 | -5/Waste | Destroyed C-40 Crusher 24742 | -5/Waste | Spotted C-40 Crusher 24748 | -5/Waste | Found Damper Plating 24752 | -5/Waste | EMP discharged 24760 | -5/Waste | Destroyed C-40 Crusher 24766 | -5/Waste | Spotted C-40 Crusher 24794 | -5/Waste | Crushed by Compactor (0 parts destroyed, 1 dropped) 24797 | -5/Waste | Crushed by Compactor (1 part destroyed) 24800 | -5/Waste | Crushed by Compactor (0 parts destroyed, 1 dropped) 24805 | -5/Waste | Self-destructed Last Messages --------------- 24786_ Slug penetrates C-40 Crusher. 24789_ Slug penetrates Wall. 24789_ Imp. Cooling System crushed. 24791_ Imp. Propulsion Shielding crushed. 24793_ Slug penetrates Wall. 24793_ Slug penetrates C-40 Crusher. 24793_ Damper Plating crushed. 24794_ KE Penetrator crushed. 24794_ Critical hit (Destroy). 24796_ Slug penetrates C-40 Crusher. 24797_ Arm. Medium Treads crushed. 24799_ Slug penetrates C-40 Crusher. 24799_ C-40 Crusher suffers critical hit (Destroy). 24799_ Slug penetrates C-40 Crusher. 24800_ IAAMK:VJMZMHVWMGBC